fUSD/lending_fUSD_20251130
["ID","MTS","AMOUNT","RATE_DAILY","PERIOD"]
[395163808,1764501045687,-426.91959755,0.00012207,2]
[395163810,1764501051761,306.68883536,0.00012107,2]
[395163811,1764501060231,151.0,0.00012207,2]
[395163812,1764501067816,1500.0,0.0001201,2]
[395163814,1764501093052,3293.125,0.00011963,2]
[395163815,1764501093168,200.846,0.00011963,2]
[395163818,1764501130203,1000.0,0.00012207,2]
[395163819,1764501140081,205.94,0.00012107,2]
[395163820,1764501140570,151.0,0.00012207,2]
[395163821,1764501141160,151.0,0.00012207,2]
[395163822,1764501141764,151.0,0.00012207,2]
[395163823,1764501142383,151.0,0.00012207,2]
[395163824,1764501142985,151.0,0.00012207,2]
[395163825,1764501144837,255.23714218,0.00012207,2]
[395163826,1764501145340,257.91778498,0.00012207,2]
[395163827,1764501146210,316.105,0.00012107,2]
[395163828,1764501148692,334.5472959,0.00012207,2]
[395163829,1764501161501,-1000.0,0.00012207,2]
[395163830,1764501168269,-9548.76710654,0.00012107,2]
[395163831,1764501168365,-10000.01,0.00012107,2]
[395163832,1764501210064,166.67,0.00011946,2]
[395163833,1764501214996,4242.54,0.00011946,2]
[395163834,1764501241267,300.0,0.00012106,2]
[395163835,1764501255569,500.0,0.00012007,2]
[395163836,1764501255997,500.0,0.00012007,2]
[395163837,1764501256581,500.0,0.00012007,2]
[395163838,1764501256992,500.0,0.00012007,2]
[395163841,1764501257418,500.0,0.00012007,2]
[395163842,1764501257892,500.0,0.00012007,2]
[395163843,1764501258518,500.0,0.00012007,2]
[395163844,1764501259003,500.0,0.00012007,2]
[395163845,1764501259587,500.0,0.00012007,2]
[395163846,1764501260044,500.0,0.00012007,2]
[395163847,1764501261813,290.8,0.00012007,2]
[395163848,1764501261838,209.2,0.00012007,2]
[395163849,1764501261989,500.0,0.00012007,2]
[395163850,1764501262085,500.0,0.00012007,2]
[395163851,1764501262182,500.0,0.00012007,2]
[395163852,1764501262490,500.0,0.00012007,2]
[395163853,1764501263010,500.0,0.00012007,2]
[395163854,1764501263455,197.92719606,0.00012007,2]
[395163855,1764501273192,195.24362989,0.00012106,2]
[395163856,1764501273233,455.46570813,0.00012106,2]
[395163857,1764501273412,188.02701636,0.00012106,2]
[395163858,1764501281150,557.59507128,0.00012106,2]
[395163859,1764501301205,300.0,0.00012106,2]
[395163860,1764501301275,1200.0,0.00012106,2]
[395163861,1764501301938,150.0,0.00012106,2]
[395163862,1764501307761,500.0,0.00012106,2]
[395163863,1764501323315,151.0,0.00012104,2]
[395163864,1764501327985,152.6306741,0.00012007,2]
[395163865,1764501374466,500.0,0.00012106,2]
[395163866,1764501400782,481.2934405,0.00012106,2]
[395163868,1764501415000,1029.06273912,0.00012107,2]
[395163869,1764501417077,1232.56452456,0.00012007,2]
[395163870,1764501417475,4613.3681427,0.00012007,2]
[395163871,1764501421690,300.0,0.00012106,2]
[395163872,1764501433292,150.0,0.00012106,2]
[395163874,1764501473273,288.0,0.00012106,2]
[395163875,1764501481313,300.0,0.00012106,2]
[395163876,1764501481977,150.0,0.00012106,2]
[395163877,1764501518485,4198.6418573,0.00012007,2]
[395163878,1764501518508,4900.66196767,0.00012007,2]
[395163881,1764501595198,2256.071527,0.00012046,2]
[395163882,1764501601240,300.0,0.00012106,2]
[395163883,1764501601312,300.0,0.00012106,2]
[395163884,1764501601526,1200.0,0.00012106,2]
[395163885,1764501607708,1043.27650533,0.00012046,2]
[395163886,1764501607731,2510.55791867,0.00012046,2]
[395163887,1764501615613,7489.45208133,0.00012007,2]
[395163888,1764501615636,10000.01,0.00012007,2]
[395163889,1764501667972,199.091008,7.945e-05,2]
[395163891,1764501914985,1.0,0.0001132,3]
[395163892,1764501919551,2539.00984342,9e-05,2]
[395163893,1764501926848,1022.20232221,0.000108,2]
[395163898,1764502056595,163.0,0.00022,30]
[395163906,1764502114143,-369.03376616,0.0001132,3]
[395163908,1764502117561,-500.0,0.0001132,3]
[395163909,1764502119724,-128.96623384,0.0001132,3]
[395163910,1764502119747,-449.66259247,0.0001133,2]
[395163911,1764502121174,-200.7170109,0.0001133,2]
[395163913,1764502122950,-260.19658991,0.0001133,2]
[395163918,1764502124529,-218.52435804,0.0001133,2]
[395163919,1764502128392,-339.66711253,0.0001133,2]
[395163921,1764502136688,-383.65233615,0.0001133,2]
[395163922,1764502136715,-2751.0,0.00011507,2]
[395163923,1764502136741,-200.0,0.0001158,2]
[395163924,1764502136768,-458.00390684,0.00011781,2]
[395163925,1764502136795,-1200.0,0.00012005,2]
[395163927,1764502137068,-300.0,0.00012006,2]
[395163928,1764502137116,-1200.0,0.00012006,2]
[395163930,1764502137171,-150.0,0.00012006,2]
[395163931,1764502137223,-205.99919946,0.00012007,2]
[395163932,1764502137625,-1810.6365575,0.00012007,2]
[395163933,1764502146507,-3621.273115,0.00012007,2]
[395163934,1764502146539,-2757.46377,0.00012007,2]
[395163935,1764502161721,-2880.70008133,0.00012007,2]
[395163936,1764502161962,-4238.60983734,0.00012007,2]
[395163937,1764502161990,-411.41472532,0.00012007,2]
[395163938,1764502162286,-699.96087468,0.00012007,2]
[395163939,1764502162316,-1474.70945064,0.00012007,2]
[395163940,1764502169566,-151.0,0.00012004,2]
[395163977,1764502201556,300.0,0.00012006,2]
[395163978,1764502201595,1200.0,0.00012006,2]
[395163990,1764502203422,150.0,0.00012006,2]
[395163994,1764502221060,5641.65327077,0.0001198,2]
[395164004,1764502231585,-5650.66934936,0.00012007,2]
[395164006,1764502231594,-600.66079034,0.00012007,2]
[395164009,1764502231640,-2634.11690966,0.00012007,2]
[395164010,1764502231650,-235.2993,0.00012007,2]
[395164011,1764502231659,-280.8511,0.00012007,2]
[395164012,1764502231668,-1098.9462,0.00012007,2]
[395164013,1764502231677,-195767.30607599,0.00012007,2]
[395164014,1764502231688,-11058.70800012,0.00012007,2]
[395164020,1764502238064,-10627.2292112,0.00012007,2]
[395164021,1764502238120,-600.0,0.00012007,2]
[395164199,1764502245679,-961.03343616,0.00012007,2]
[395164201,1764502261255,300.0,0.00012006,2]
[395164203,1764502266108,500.0,0.00012006,2]
[395164204,1764502266446,504.18281045,0.00012006,2]
[395164206,1764502278986,-309.59966091,0.00012007,2]
[395164207,1764502281462,-548.96763811,0.00012007,2]
[395164208,1764502283182,173.62435858,0.0001198,2]
[395164209,1764502283896,-318.60669344,0.00012007,2]
[395164210,1764502286349,-249.54801596,0.00012007,2]
[395164211,1764502288064,-269.71146789,0.00012007,2]
[395164212,1764502289502,-215.92294338,0.00012007,2]
[395164213,1764502290900,200.0,0.00012006,2]
[395164214,1764502292138,-181.15641038,0.00012007,2]
[395164215,1764502293077,728.5495602,0.00011767,2]
[395164216,1764502293109,2344.1654398,0.00011767,2]
[395164217,1764502294828,193.71,0.00011767,2]
[395164218,1764502297192,-516.53081686,0.00012007,2]
[395164219,1764502300850,-298.71553241,0.00012007,2]
[395164220,1764502302866,-500.0,0.00012007,2]
[395164221,1764502306321,-228.4665347,0.00012007,2]
[395164222,1764502310674,-183.5334653,0.00012007,2]
[395164223,1764502313863,-441.492013,0.00012007,2]
[395164224,1764502319262,-198.18696423,0.00012007,2]
[395164225,1764502319334,5138.0,0.00013,10]
[395164236,1764502320879,-289.39535303,0.00012007,2]
[395164237,1764502323424,-187.42409288,0.00012007,2]
[395164238,1764502326474,-228.56036305,0.00012007,2]
[395164239,1764502330831,-300.0,0.00012007,2]
[395164240,1764502331644,151.0,0.00012004,2]
[395164241,1764502345120,-252.55677412,0.00012007,2]
[395164242,1764502346544,-578.67284144,0.00012007,2]
[395164243,1764502350065,-522.46997611,0.00012007,2]
[395164244,1764502353722,-280.44853211,0.00012007,2]
[395164245,1764502355436,578.20924308,0.00012007,2]
[395164246,1764502361281,173.62435858,0.00011907,2]
[395164248,1764502370254,441.492013,0.00011947,2]
[395164254,1764502381636,229.1836,0.00011907,2]
[395164255,1764502381933,150.0,0.00012006,2]
[395164256,1764502383922,-403.50816133,0.00012007,2]
[395164269,1764502400407,152.51038885,0.00012006,2]
[395164270,1764502408991,173.62435858,0.00011907,2]
[395164271,1764502411969,5412.49059811,0.00012001,2]
[395164272,1764502411991,10000.01,0.00012001,2]
[395164273,1764502412015,10000.01,0.00012001,2]
[395164274,1764502412040,10000.01,0.00012001,2]
[395164275,1764502412062,10000.01,0.00012001,2]
[395164276,1764502412085,10000.01,0.00012001,2]
[395164277,1764502412107,10000.01,0.00012001,2]
[395164278,1764502412130,8874.94940189,0.00012001,2]
[395164279,1764502413915,-277.7958107,0.00012007,2]
[395164291,1764502416051,-207.22068025,0.00012007,2]
[395164304,1764502428923,-174.46010026,0.00012007,2]
[395164305,1764502433783,-229.47581174,0.00012007,2]
[395164306,1764502434802,-304.81568665,0.00012007,2]
[395164308,1764502441316,300.0,0.00012006,2]
[395164310,1764502457286,215.97,9.186e-05,2]
[395164311,1764502457469,215.97,0.00010105,2]
[395164312,1764502457654,215.97,0.00011023,2]
[395164313,1764502457861,215.97,0.00011942,2]
[395164314,1764502458925,-151.51245915,0.00012007,2]
[395164315,1764502462996,-221.97219332,0.00012007,2]
[395164316,1764502464917,-404.54573868,0.00012007,2]
[395164317,1764502480317,1000.0,0.00011907,2]
[395164318,1764502484536,295.66558469,0.00011907,2]
[395164320,1764502502670,300.0,0.00012006,2]
[395164321,1764502502708,1200.0,0.00012006,2]
[395164323,1764502505025,1000.0,0.00011907,2]
[395164324,1764502523495,676.1329,0.00011907,2]
[395164325,1764502560395,4364.33151531,0.00011907,2]
[395164326,1764502560418,3139.98712458,0.00011907,2]
[395164327,1764502561935,150.0,0.00012006,2]
[395164328,1764502562914,456.46594908,0.00012006,2]
[395164329,1764502563983,-238.36710413,0.00012007,2]
[395164330,1764502566869,-198.57145067,0.00012007,2]
[395164331,1764502568943,-166.68338286,0.00012007,2]
[395164332,1764502571671,-244.4596897,0.00012007,2]
[395164333,1764502573769,-300.0,0.00012007,2]
[395164334,1764502575291,-300.0,0.00012007,2]
[395164335,1764502576850,-284.7500004,0.00012007,2]
[395164336,1764502579467,-244.52844755,0.00012007,2]
[395164337,1764502582256,-348.48754085,0.00012007,2]
[395164338,1764502583655,-393.6718542,0.00012007,2]
[395164339,1764502586270,-168.34169307,0.00012007,2]
[395164340,1764502588421,-152.42312095,0.00012007,2]
[395164341,1764502591204,-300.0,0.00012007,2]
[395164342,1764502593761,-501.1082752,0.00012007,2]
[395164343,1764502596210,-244.4596897,0.00012007,2]
[395164344,1764502610932,5725.84063097,0.00011907,2]
[395164345,1764502621239,300.0,0.00012006,2]
[395164346,1764502623970,-287.47606149,0.00012007,2]
[395164347,1764502624837,227.71629537,0.00012007,2]
[395164348,1764502624859,72.28370463,0.00012007,2]
[395164349,1764502625919,-178.80027896,0.00012007,2]
[395164350,1764502628370,334.5472959,0.00012007,2]
[395164351,1764502628510,-500.0,0.00012007,2]
[395164353,1764502629123,670.58624095,0.00012007,2]
[395164354,1764502632175,533.88981491,0.00012007,2]
[395164355,1764502636284,1000.0,0.00012007,2]
[395164356,1764502636895,1000.0,0.00012007,2]
[395164357,1764502637504,1000.0,0.00012007,2]
[395164358,1764502638111,1000.0,0.00012007,2]
[395164359,1764502638209,4388.70294361,0.00012007,2]
[395164360,1764502638231,1654.77935388,0.00012007,2]
[395164361,1764502639795,1000.0,0.00012007,2]
[395164362,1764502639905,250.0,0.00012007,2]
[395164363,1764502639974,1000.0,0.00012007,2]
[395164364,1764502640121,151.96835927,0.00012007,2]
[395164365,1764502640161,250.0,0.00012007,2]
[395164366,1764502640341,1000.0,0.00012007,2]
[395164367,1764502640502,268.64678523,0.00012007,2]
[395164368,1764502640669,287.47606149,0.00012007,2]
[395164369,1764502641455,976.88386487,0.00012007,2]
[395164370,1764502644670,252.55677412,0.00012007,2]
[395164371,1764502646003,500.0,0.00012007,2]
[395164372,1764502647177,500.0,0.00012007,2]
[395164373,1764502647278,500.0,0.00012007,2]
[395164374,1764502647836,1000.0,0.00012007,2]
[395164375,1764502647907,407.69880114,0.00012007,2]
[395164376,1764502647928,92.30119886,0.00012007,2]
[395164377,1764502648233,560.55325543,0.00012007,2]
[395164378,1764502648319,151.0,0.00012007,2]
[395164379,1764502648419,1000.0,0.00012007,2]
[395164380,1764502648469,500.0,0.00012007,2]
[395164381,1764502656678,-1600.0,0.00011456,2]
[395164382,1764502656706,-151.0,0.00012007,2]
[395164383,1764502656735,-1000.0,0.00012007,2]
[395164384,1764502656764,-250.0,0.00012007,2]
[395164385,1764502656793,-151.0,0.00012007,2]
[395164386,1764502656822,-1000.0,0.00012007,2]
[395164387,1764502656850,-500.0,0.00012007,2]
[395164388,1764502656878,-250.0,0.00012007,2]
[395164389,1764502656906,-45.01,0.00012007,2]
[395164390,1764502657152,-105.99,0.00012007,2]
[395164391,1764502657182,-1000.0,0.00012007,2]
[395164392,1764502657210,-500.0,0.00012007,2]
[395164393,1764502657240,-250.0,0.00012007,2]
[395164394,1764502657268,-151.0,0.00012007,2]
[395164395,1764502657299,-1000.0,0.00012007,2]
[395164396,1764502657329,-500.0,0.00012007,2]
[395164397,1764502657357,-250.0,0.00012007,2]
[395164398,1764502657385,-151.0,0.00012007,2]
[395164399,1764502657414,-1000.0,0.00012007,2]
[395164400,1764502657469,-500.0,0.00012007,2]
[395164401,1764502657497,-250.0,0.00012007,2]
[395164402,1764502657525,-151.0,0.00012007,2]
[395164403,1764502657554,-500.0,0.00012007,2]
[395164404,1764502657582,-250.0,0.00012007,2]
[395164405,1764502657609,-151.0,0.00012007,2]
[395164406,1764502657637,-500.0,0.00012007,2]
[395164407,1764502657665,-250.0,0.00012007,2]
[395164408,1764502657693,-151.0,0.00012007,2]
[395164409,1764502657721,-500.0,0.00012007,2]
[395164410,1764502657748,-257.91778498,0.00012007,2]
[395164411,1764502657775,-250.0,0.00012007,2]
[395164412,1764502657801,-151.0,0.00012007,2]
[395164413,1764502657829,-545.48332684,0.00012007,2]
[395164414,1764502657856,-279.62732856,0.00012007,2]
[395164415,1764502657884,-151.0,0.00012007,2]
[395164416,1764502657931,-151.0,0.00012007,2]
[395164417,1764502658294,-151.0,0.00012007,2]
[395164418,1764502665457,-150.0,0.00011876,2]
[395164419,1764502665489,-1000.0,0.00012007,2]
[395164420,1764502665881,-578.20924308,0.00012007,2]
[395164422,1764502667027,-2490.89977662,0.00012007,2]
[395164423,1764502669726,-10000.01,0.00012007,2]
[395164424,1764502669842,-10000.01,0.00012007,2]
[395164425,1764502669953,-10000.01,0.00012007,2]
[395164426,1764502670055,-10000.01,0.00012007,2]
[395164427,1764502670161,-10000.01,0.00012007,2]
[395164428,1764502670285,-10000.01,0.00012007,2]
[395164431,1764502682601,-1000.0,0.00011907,2]
[395164432,1764502682631,-300.0,0.00012006,2]
[395164433,1764502692234,178.8002,0.00011907,2]
[395164434,1764502714009,-289.51828765,0.00012007,2]
[395164435,1764502760649,-436.25007986,0.00012007,2]
[395164436,1764502765359,-451.5997428,0.00012007,2]
[395164437,1764502766661,-251.81536925,0.00012007,2]
[395164438,1764502770285,-417.18463075,0.00012007,2]
[395164440,1764502795544,378.78396982,0.00011907,2]
[395164441,1764502801190,300.0,0.00012006,2]
[395164442,1764502801971,1200.0,0.00012006,2]
[395164443,1764502803965,-300.0,0.00012007,2]
[395164449,1764502842619,737.4599,0.00011907,2]
[395164451,1764502861325,300.0,0.00012006,2]
[395164452,1764502863186,300.0,0.00011947,2]
[395164453,1764502879178,-289.2812312,0.00012007,2]
[395164454,1764502881726,-296.55391083,0.00012007,2]
[395164455,1764502883943,1000.0,0.00012006,2]
[395164456,1764502887675,451.599743,0.00011947,2]
[395164457,1764502921285,300.0,0.00012006,2]
[395164458,1764502921993,150.0,0.00012006,2]
[395164459,1764502922030,219.0,0.00012006,2]
[395164460,1764502927661,334.5472959,0.00012007,2]
[395164461,1764502929736,257.91778498,0.00012007,2]
[395164462,1764502930329,272.98667318,0.00012007,2]
[395164463,1764502932848,533.88981491,0.00012007,2]
[395164464,1764502936299,485.02461821,0.00012007,2]
[395164465,1764502936321,514.97538179,0.00012007,2]
[395164466,1764502936749,-2085.02461821,0.00012007,2]
[395164467,1764502936767,-10000.01,0.00012007,2]
[395164468,1764502936799,-10000.01,0.00012007,2]
[395164469,1764502936814,-10000.01,0.00012007,2]
[395164470,1764502936843,-10000.01,0.00012007,2]
[395164471,1764502936857,-10000.01,0.00012007,2]
[395164472,1764502936885,-10000.01,0.00012007,2]
[395164473,1764502936905,-10000.01,0.00012007,2]
[395164474,1764502942082,-10000.01,0.00012007,2]
[395164475,1764502942330,-10000.01,0.00012007,2]
[395164476,1764502958323,-314.79432038,0.00012006,2]
[395164477,1764502958356,-587.11065813,0.00012007,2]
[395164478,1764502958386,-670.58624095,0.00012007,2]
[395164479,1764502958414,-250.0,0.00012007,2]
[395164480,1764502958445,-250.0,0.00012007,2]
[395164481,1764502958473,-250.0,0.00012007,2]
[395164482,1764502958817,-500.0,0.00012007,2]
[395164483,1764502958827,-4855.02756108,0.00012007,2]
[395164484,1764502958860,-500.0,0.00012007,2]
[395164485,1764502958870,-9500.01,0.00012007,2]
[395164486,1764502958885,-10000.01,0.00012007,2]
[395164487,1764502958906,-10000.01,0.00012007,2]
[395164488,1764502964604,-500.0,0.00011907,2]
[395164489,1764502964634,-500.0,0.00012007,2]
[395164490,1764502964663,-500.0,0.00012007,2]
[395164491,1764502964693,-500.0,0.00012007,2]
[395164492,1764502964722,-500.0,0.00012007,2]
[395164493,1764502964757,-500.0,0.00012007,2]
[395164494,1764502964786,-500.0,0.00012007,2]
[395164495,1764502964814,-500.0,0.00012007,2]
[395164496,1764502964843,-500.0,0.00012007,2]
[395164497,1764502964872,-500.0,0.00012007,2]
[395164498,1764502965005,-500.0,0.00012007,2]
[395164499,1764502965162,-0.01,0.00012007,2]
[395164500,1764502965180,-9000.01,0.00012007,2]
[395164501,1764502965224,-10000.01,0.00012007,2]
[395164502,1764502974362,-247.44322588,0.00012007,2]
[395164503,1764502981636,300.0,0.00012006,2]
[395164504,1764502990043,-9700.01,0.00012007,2]
[395164505,1764502990188,-10000.01,0.00012007,2]
[395164506,1764502990414,-10000.01,0.00012007,2]
[395164507,1764502990527,-10000.01,0.00012007,2]
[395164508,1764502990643,-10000.01,0.00012007,2]
[395164509,1764502990745,-10000.01,0.00012007,2]
[395164510,1764502990883,-10000.01,0.00012007,2]
[395164511,1764502991002,-10000.01,0.00012007,2]
[395164512,1764502991111,-10000.01,0.00012007,2]
[395164513,1764503036974,-483.58,0.00011833,2]
[395164514,1764503037006,-151.0,0.00012004,2]
[395164515,1764503037048,-154.54452364,0.00012004,2]
[395164516,1764503041459,300.0,0.00012006,2]
[395164517,1764503074104,-260.88026284,0.00012007,2]
[395164518,1764503075304,7212.47200082,0.00011907,2]
[395164519,1764503077647,-500.0,0.00012007,2]
[395164520,1764503080455,-198.98171055,0.00012007,2]
[395164521,1764503082519,-213.31346868,0.00012007,2]
[395164522,1764503084524,909.2889519,5.853e-05,2]
[395164523,1764503084547,103.5810481,5.853e-05,2]
[395164524,1764503084601,1012.87,6.161e-05,2]
[395164525,1764503084750,1012.87,6.469e-05,2]
[395164526,1764503084961,1012.87,6.777e-05,2]
[395164527,1764503085144,-254.9048155,0.00012007,2]
[395164528,1764503085181,1012.87,7.085e-05,2]
[395164529,1764503085365,1012.87,7.393e-05,2]
[395164530,1764503085873,1012.87,7.701e-05,2]
[395164531,1764503086084,1012.87,8.009e-05,2]
[395164532,1764503086286,1012.87,8.317e-05,2]
[395164533,1764503086478,1012.87,8.625e-05,2]
[395164534,1764503086671,780.5989519,8.933e-05,2]
[395164535,1764503086693,232.2710481,8.933e-05,2]
[395164536,1764503086880,1012.87,9.241e-05,2]
[395164537,1764503087079,1012.87,9.549e-05,2]
[395164538,1764503087272,1012.87,9.857e-05,2]
[395164539,1764503087331,-281.72570416,0.00012007,2]
[395164540,1764503087456,1012.87,0.00010165,2]
[395164541,1764503087652,1012.87,0.00010473,2]
[395164542,1764503087833,1012.87,0.00010781,2]
[395164543,1764503088030,1012.87,0.00011089,2]
[395164544,1764503088251,1012.87,0.00011397,2]
[395164545,1764503088443,1012.87,0.00011705,2]
[395164546,1764503089269,500.0,0.00012006,2]
[395164547,1764503089323,151.9089519,0.00012006,2]
[395164548,1764503089348,348.0910481,0.00012006,2]
[395164549,1764503089387,500.0,0.00012006,2]
[395164550,1764503089453,500.0,0.00012006,2]
[395164551,1764503089492,500.0,0.00012006,2]
[395164552,1764503089543,500.0,0.00012006,2]
[395164553,1764503089608,513.23108515,0.00012006,2]
[395164554,1764503090381,-268.60669344,0.00012007,2]
[395164555,1764503092399,-245.76752005,0.00012007,2]
[395164556,1764503095963,-158.21882185,0.00012007,2]
[395164557,1764503097066,-181.39330656,0.00012007,2]
[395164558,1764503100371,-334.30826152,0.00012007,2]
[395164559,1764503101182,300.0,0.00012006,2]
[395164560,1764503101220,300.0,0.00012006,2]
[395164561,1764503101368,1200.0,0.00012006,2]
[395164562,1764503101997,150.0,0.00012006,2]
[395164563,1764503104573,1248.56965651,0.00012007,2]
[395164564,1764503104671,-250.0,0.00012007,2]
[395164565,1764503107108,-200.0,0.00012007,2]
[395164566,1764503108907,200.0,0.00012007,2]
[395164592,1764503115863,500.0,0.00012006,2]
[395164594,1764503115906,500.0,0.00012006,2]
[395164596,1764503115948,500.0,0.00012006,2]
[395164599,1764503116003,500.0,0.00012006,2]
[395164601,1764503116057,500.0,0.00012006,2]
[395164603,1764503116101,500.0,0.00012006,2]
[395164605,1764503116142,500.0,0.00012006,2]
[395164608,1764503116196,240.11821024,0.00012006,2]
[395164610,1764503116226,259.88178976,0.00012006,2]
[395164612,1764503116271,500.0,0.00012006,2]
[395164627,1764503116790,346.68595463,0.00012006,2]
[395164628,1764503116853,500.0,0.00012006,2]
[395164630,1764503116912,500.0,0.00012006,2]
[395164725,1764503138011,500.0,0.00012006,2]
[395164726,1764503138052,500.0,0.00012006,2]
[395164727,1764503138093,500.0,0.00012006,2]
[395164728,1764503138137,500.0,0.00012006,2]
[395164729,1764503138190,518.48562802,0.00012006,2]
[395164730,1764503138249,500.0,0.00012006,2]
[395164731,1764503138296,500.0,0.00012006,2]
[395164732,1764503138339,500.0,0.00012006,2]
[395164733,1764503138397,500.0,0.00012006,2]
[395164734,1764503138440,500.0,0.00012006,2]
[395164735,1764503138493,500.0,0.00012006,2]
[395164736,1764503138563,500.0,0.00012006,2]
[395164737,1764503138624,500.0,0.00012006,2]
[395164738,1764503138683,500.0,0.00012006,2]
[395164746,1764503155059,250.0,0.00011431,2]
[395164747,1764503157944,151.12099262,0.00012007,2]
[395164748,1764503161295,300.0,0.00012006,2]
[395164749,1764503166228,173.83563497,0.00011907,2]
[395164750,1764503166254,10000.01,0.00011907,2]
[395164751,1764503166281,10000.01,0.00011907,2]
[395164752,1764503166311,10000.01,0.00011907,2]
[395164753,1764503166338,10000.01,0.00011907,2]
[395164754,1764503166364,10000.01,0.00011907,2]
[395164755,1764503166390,10000.01,0.00011907,2]
[395164756,1764503166419,10000.01,0.00011907,2]
[395164757,1764503166445,10000.01,0.00011907,2]
[395164760,1764503197399,-463.77269,0.000119,2]
[395164761,1764503197427,-463.77268,0.000119,2]
[395164762,1764503197455,-463.77269,0.000119,2]
[395164763,1764503197486,-412.13670665,0.00011906,2]
[395164764,1764503197514,-500.0,0.00011906,2]
[395164765,1764503197542,-372.20389172,0.00011906,2]
[395164766,1764503197571,-500.0,0.00011906,2]
[395164767,1764503197600,-330.04126378,0.00011906,2]
[395164769,1764503202173,463.77269,0.000119,2]
[395164772,1764503210422,-394.41304336,0.00011907,2]
[395164773,1764503211515,-184.82968071,0.00011907,2]
[395164774,1764503212926,-294.77285261,0.00011907,2]
[395164775,1764503215576,-299.36204804,0.00011907,2]
[395164777,1764503217945,-417.47152065,0.00011907,2]
[395164779,1764503219359,-324.44683813,0.00011907,2]
[395164780,1764503221767,-276.6926543,0.00011907,2]
[395164781,1764503221936,300.0,0.00011906,2]
[395164782,1764503223760,-391.67096705,0.00011907,2]
[395164783,1764503224019,2224.8374657,0.00011907,2]
[395164784,1764503224040,3285.39029448,0.00011907,2]
[395164817,1764503283939,-300.0,0.00011412,2]
[395164818,1764503285427,-295.81556363,0.00011412,2]
[395164819,1764503286963,-393.30845519,0.00011412,2]
[395164820,1764503289404,-515.17031929,0.00011412,2]
[395164821,1764503290995,-686.668,0.00011412,2]
[395164822,1764503293541,-282.39367945,0.00011412,2]
[395164845,1764503312657,-4784.24601756,0.00011412,2]
[395164846,1764503313146,-431.51796488,0.00011412,2]
[395164847,1764503313175,-585.835142,0.00011847,2]
[395164848,1764503313207,-150.0,0.00011906,2]
[395164849,1764503331241,1000.0,0.00011807,2]
[395164850,1764503337281,210.85739634,0.00011906,2]
[395164851,1764503341259,300.0,0.00011906,2]
[395164861,1764503355800,1000.0,0.00011807,2]
[395164870,1764503381196,152.1713653,0.00011907,2]
[395164871,1764503381231,987.88238181,0.00011907,2]
[395164878,1764503399024,4014.39264279,0.00011807,2]
[395164879,1764503399049,5688.35048597,0.00011807,2]
[395164880,1764503401152,300.0,0.00011906,2]
[395164881,1764503401192,300.0,0.00011906,2]
[395164882,1764503401236,1200.0,0.00011906,2]
[395164888,1764503421398,250.0,0.000119,2]
[395164889,1764503421786,297.7,0.000119,2]
[395164899,1764503431868,-55070.58897609,0.00011907,2]
[395164934,1764503438532,-19524.9198643,0.00011907,2]
[395164940,1764503439901,-273834.38256176,0.00011907,2]